[Event "Late-Titled-Tuesday-Blitz-May-14-2024"]
[Site "Chess.com"]
[Date "2024.05.14"]
[Round "4"]
[White "GMAneta"]
[Black "mouseslips_are_the_best"]
[Result "1-0"]
[WhiteElo "2537"]
[BlackElo "2361"]
[TimeControl "180+1"]
[EndTime "14:37:12 PDT"]
[Termination "GMAneta won by resignation"]

1. d4 {[%clk 0:02:14.7]} 1... Nf6 {[%clk 0:02:59.1]} 2. Nf3 {[%clk 0:02:13.8]}
2... g6 {[%clk 0:02:58.8]} 3. c4 {[%clk 0:02:13.8]} 3... Bg7 {[%clk 0:02:59.2]}
4. g3 {[%clk 0:02:14.2]} 4... c5 {[%clk 0:02:57.8]} 5. Bg2 {[%clk 0:02:13.3]}
5... cxd4 {[%clk 0:02:57.4]} 6. Nxd4 {[%clk 0:02:12.6]} 6... d5 {[%clk
0:02:57.8]} 7. O-O {[%clk 0:02:10.8]} 7... O-O {[%clk 0:02:56.5]} 8. cxd5 {[%clk
0:02:01.6]} 8... Nxd5 {[%clk 0:02:56]} 9. Nb5 {[%clk 0:02:02.3]} 9... Be6 {[%clk
0:02:53.4]} 10. N1c3 {[%clk 0:01:55.9]} 10... Nxc3 {[%clk 0:02:47.2]} 11. bxc3
{[%clk 0:01:55.8]} 11... Nc6 {[%clk 0:02:41.4]} 12. Qa4 {[%clk 0:01:55.3]} 12...
a6 {[%clk 0:02:35.9]} 13. Nd4 {[%clk 0:01:48.4]} 13... Nxd4 {[%clk 0:02:33.3]}
14. cxd4 {[%clk 0:01:48.5]} 14... Qxd4 {[%clk 0:02:32.8]} 15. Qxd4 {[%clk
0:01:44.2]} 15... Bxd4 {[%clk 0:02:33.3]} 16. Rb1 {[%clk 0:01:45.1]} 16... Bxa2
{[%clk 0:02:04.7]} 17. Rxb7 {[%clk 0:01:40.5]} 17... Bf6 {[%clk 0:02:05.2]} 18.
Ba3 {[%clk 0:01:39.1]} 18... Rfe8 {[%clk 0:01:56.7]} 19. Bxe7 {[%clk 0:01:35.9]}
19... Bxe7 {[%clk 0:01:55.6]} 20. Rxe7 {[%clk 0:01:33.4]} 20... Rxe7 {[%clk
0:01:55.8]} 21. Bxa8 {[%clk 0:01:33.5]} 21... Rxe2 {[%clk 0:01:56.3]} 22. Ra1
{[%clk 0:01:33.3]} 22... Bc4 {[%clk 0:01:55.3]} 23. Bb7 {[%clk 0:01:32.2]} 23...
Re6 {[%clk 0:01:53.4]} 24. f4 {[%clk 0:01:31.6]} 24... Re7 {[%clk 0:01:48]} 25.
Bc6 {[%clk 0:01:24.8]} 25... Ra7 {[%clk 0:01:47.5]} 26. Ra5 {[%clk 0:01:23]}
26... Kg7 {[%clk 0:01:43]} 27. Kf2 {[%clk 0:01:21.4]} 27... Kf6 {[%clk
0:01:42.9]} 28. Ke3 {[%clk 0:01:21.5]} 28... Be6 {[%clk 0:01:39.6]} 29. Kd4
{[%clk 0:01:21.2]} 29... Ke7 {[%clk 0:01:32.8]} 30. Kc5 {[%clk 0:01:21.2]} 30...
Bd7 {[%clk 0:01:31.9]} 31. Bd5 {[%clk 0:01:19.7]} 31... h6 {[%clk 0:01:27.9]}
32. Kb6 {[%clk 0:01:18.5]} 1-0

[Event "Late-Titled-Tuesday-Blitz-May-14-2024"]
[Site "Chess.com"]
[Date "2024.05.14"]
[Round "4"]
[White "DishonorOnYourCow"]
[Black "zacachess"]
[Result "1-0"]
[WhiteElo "2535"]
[BlackElo "2359"]
[TimeControl "180+1"]
[EndTime "14:37:12 PDT"]
[Termination "DishonorOnYourCow won by resignation"]

1. d4 {[%clk 0:03:00.9]} 1... Nf6 {[%clk 0:02:59.4]} 2. c4 {[%clk 0:03:01]} 2...
e6 {[%clk 0:02:59.7]} 3. Nf3 {[%clk 0:03:01.4]} 3... Bb4+ {[%clk 0:02:59.9]} 4.
Nbd2 {[%clk 0:03:01.4]} 4... b6 {[%clk 0:02:59.6]} 5. a3 {[%clk 0:02:58.6]} 5...
Bxd2+ {[%clk 0:02:58.9]} 6. Qxd2 {[%clk 0:02:57.9]} 6... Bb7 {[%clk 0:02:57.9]}
7. e3 {[%clk 0:02:58.1]} 7... O-O {[%clk 0:02:57.8]} 8. Be2 {[%clk 0:02:57.7]}
8... d6 {[%clk 0:02:44]} 9. O-O {[%clk 0:02:56]} 9... Nbd7 {[%clk 0:02:44.4]}
10. b4 {[%clk 0:02:55]} 10... Ne4 {[%clk 0:02:43.2]} 11. Qc2 {[%clk 0:02:55]}
11... f5 {[%clk 0:02:43.5]} 12. d5 {[%clk 0:02:52.9]} 12... e5 {[%clk 0:02:15]}
13. Nd2 {[%clk 0:02:50.7]} 13... Nxd2 {[%clk 0:02:08.2]} 14. Bxd2 {[%clk
0:02:51.6]} 14... e4 {[%clk 0:01:58.7]} 15. Bc3 {[%clk 0:02:45.2]} 15... Qe7
{[%clk 0:01:57.6]} 16. Rae1 {[%clk 0:02:40.6]} 16... Rae8 {[%clk 0:01:55.2]} 17.
f4 {[%clk 0:02:24.7]} 17... exf3 {[%clk 0:01:48.4]} 18. Rxf3 {[%clk 0:02:24]}
18... Qg5 {[%clk 0:01:31.4]} 19. Bd3 {[%clk 0:02:18.5]} 19... Ne5 {[%clk
0:01:23.4]} 20. Rg3 {[%clk 0:01:59]} 20... Qh6 {[%clk 0:01:15.8]} 21. Bxf5
{[%clk 0:01:54.6]} 21... Rxf5 {[%clk 0:00:36.4]} 22. Qxf5 {[%clk 0:01:50.5]}
22... Nxc4 {[%clk 0:00:33]} 23. Rxg7+ {[%clk 0:01:34.6]} 1-0

[Event "Late-Titled-Tuesday-Blitz-May-14-2024"]
[Site "Chess.com"]
[Date "2024.05.14"]
[Round "4"]
[White "Tolyanius"]
[Black "A4RookA3"]
[Result "1-0"]
[WhiteElo "2661"]
[BlackElo "2416"]
[TimeControl "180+1"]
[EndTime "14:37:15 PDT"]
[Termination "Tolyanius won by checkmate"]

1. e4 {[%clk 0:03:00.3]} 1... c6 {[%clk 0:02:59]} 2. c4 {[%clk 0:02:58.7]} 2...
d5 {[%clk 0:02:59.9]} 3. exd5 {[%clk 0:02:59.6]} 3... cxd5 {[%clk 0:03:00.8]} 4.
cxd5 {[%clk 0:03:00.2]} 4... Nf6 {[%clk 0:03:01.2]} 5. Nc3 {[%clk 0:03:01.1]}
5... Nxd5 {[%clk 0:03:00.1]} 6. Nf3 {[%clk 0:03:02]} 6... e6 {[%clk 0:02:58.1]}
7. d4 {[%clk 0:03:01.9]} 7... Nxc3 {[%clk 0:02:58]} 8. bxc3 {[%clk 0:03:01.7]}
8... Qc7 {[%clk 0:02:58.9]} 9. Bd2 {[%clk 0:03:00.9]} 9... Be7 {[%clk
0:02:55.3]} 10. Bd3 {[%clk 0:03:01.6]} 10... O-O {[%clk 0:02:55]} 11. O-O {[%clk
0:03:01.8]} 11... Nd7 {[%clk 0:02:53.8]} 12. Qe2 {[%clk 0:03:02.3]} 12... Nf6
{[%clk 0:02:52.8]} 13. Bg5 {[%clk 0:02:56.2]} 13... h6 {[%clk 0:02:50.3]} 14.
Bh4 {[%clk 0:02:56.7]} 14... Nd5 {[%clk 0:02:44.3]} 15. Bg3 {[%clk 0:02:48.5]}
15... Bd6 {[%clk 0:02:27.6]} 16. c4 {[%clk 0:02:44.5]} 16... Bxg3 {[%clk
0:01:55.4]} 17. fxg3 {[%clk 0:02:34.1]} 17... Nf6 {[%clk 0:01:52.7]} 18. Rad1
{[%clk 0:02:33.2]} 18... b6 {[%clk 0:01:44.8]} 19. Ne5 {[%clk 0:02:32.7]} 19...
Bb7 {[%clk 0:01:40.4]} 20. Rxf6 {[%clk 0:02:09.6]} 20... gxf6 {[%clk 0:01:28.1]}
21. Qg4+ {[%clk 0:02:09.8]} 21... Kh8 {[%clk 0:01:24.1]} 22. Qh4 {[%clk
0:02:10.5]} 22... Kg7 {[%clk 0:01:20.7]} 23. Ng4 {[%clk 0:02:05.2]} 23... Rh8
{[%clk 0:01:10.7]} 24. Qxf6+ {[%clk 0:02:04.8]} 24... Kg8 {[%clk 0:01:10.4]} 25.
Nxh6+ {[%clk 0:02:05.3]} 25... Rxh6 {[%clk 0:01:09.9]} 26. Qxh6 {[%clk
0:02:06.2]} 26... Rd8 {[%clk 0:00:57.8]} 27. Rf1 {[%clk 0:02:04.2]} 27... Rd7
{[%clk 0:00:44.7]} 28. Bh7+ {[%clk 0:01:39.7]} 28... Kh8 {[%clk 0:00:43.9]} 29.
Bg6+ {[%clk 0:01:40.3]} 29... Kg8 {[%clk 0:00:44.1]} 30. Qh7+ {[%clk 0:01:41]}
30... Kf8 {[%clk 0:00:44.2]} 31. Qh8+ {[%clk 0:01:41.8]} 31... Ke7 {[%clk
0:00:43.5]} 32. Rxf7+ {[%clk 0:01:42.5]} 32... Kd6 {[%clk 0:00:44.3]} 33. Qe5+
{[%clk 0:01:42.1]} 33... Kc6 {[%clk 0:00:44.3]} 34. Be4+ {[%clk 0:01:42.3]}
34... Rd5 {[%clk 0:00:43.6]} 35. Rxc7# {[%clk 0:01:42.1]} 1-0

[Event "Late-Titled-Tuesday-Blitz-May-14-2024"]
[Site "Chess.com"]
[Date "2024.05.14"]
[Round "4"]
[White "Puzzlebot_1294"]
[Black "Rdeux42"]
[Result "1-0"]
[WhiteElo "2645"]
[BlackElo "2402"]
[TimeControl "180+1"]
[EndTime "14:37:18 PDT"]
[Termination "Puzzlebot_1294 won by resignation"]

1. d4 {[%clk 0:03:00.9]} 1... g6 {[%clk 0:03:00.9]} 2. e4 {[%clk 0:03:00.4]}
2... Bg7 {[%clk 0:03:00.7]} 3. Nc3 {[%clk 0:03:00.7]} 3... d6 {[%clk 0:03:01.6]}
4. Nf3 {[%clk 0:02:59.6]} 4... Nd7 {[%clk 0:03:02.5]} 5. Bc4 {[%clk 0:02:56.2]}
5... a6 {[%clk 0:03:03.4]} 6. a4 {[%clk 0:02:55.8]} 6... b6 {[%clk 0:03:03.5]}
7. Be3 {[%clk 0:02:54.7]} 7... e6 {[%clk 0:03:03.1]} 8. h4 {[%clk 0:02:53.3]}
8... h6 {[%clk 0:03:04]} 9. h5 {[%clk 0:02:53.7]} 9... g5 {[%clk 0:03:03.8]} 10.
Qd2 {[%clk 0:02:54.1]} 10... Bb7 {[%clk 0:02:55.6]} 11. Ng1 {[%clk 0:02:51.5]}
11... Ngf6 {[%clk 0:02:42.6]} 12. f3 {[%clk 0:02:48.4]} 12... Qe7 {[%clk
0:02:41.6]} 13. Nge2 {[%clk 0:02:47.6]} 13... c5 {[%clk 0:02:29.8]} 14. d5
{[%clk 0:02:43.2]} 14... Ne5 {[%clk 0:02:28.1]} 15. Ba2 {[%clk 0:02:43]} 15...
Rb8 {[%clk 0:02:24.2]} 16. Rd1 {[%clk 0:02:39.3]} 16... Rd8 {[%clk 0:02:20.2]}
17. f4 {[%clk 0:02:27.7]} 17... Neg4 {[%clk 0:02:18.3]} 18. fxg5 {[%clk
0:02:26.5]} 18... hxg5 {[%clk 0:02:08.5]} 19. Bxg5 {[%clk 0:02:27.4]} 19... exd5
{[%clk 0:02:07]} 20. Bxd5 {[%clk 0:02:25.2]} 20... Bxd5 {[%clk 0:02:05.2]} 21.
exd5 {[%clk 0:02:04.2]} 21... Qd7 {[%clk 0:02:03.9]} 22. h6 {[%clk 0:02:00.4]}
22... Bf8 {[%clk 0:02:01.9]} 23. Qf4 {[%clk 0:01:56.4]} 23... Be7 {[%clk
0:02:00]} 24. Ng3 {[%clk 0:01:46]} 24... b5 {[%clk 0:01:55.9]} 25. axb5 {[%clk
0:01:38.6]} 25... axb5 {[%clk 0:01:56.8]} 26. Nf5 {[%clk 0:01:34.3]} 26... Bf8
{[%clk 0:01:51.5]} 27. O-O {[%clk 0:01:23]} 27... Qa7 {[%clk 0:01:43.5]} 28.
Ng7+ {[%clk 0:01:09.5]} 28... Kd7 {[%clk 0:01:39.4]} 29. Bxf6 {[%clk 0:01:06.3]}
29... Rxh6 {[%clk 0:01:37.7]} 30. Bxd8 {[%clk 0:00:54.2]} 30... c4+ {[%clk
0:01:36.9]} 31. Qd4 {[%clk 0:00:53.6]} 31... Qxd4+ {[%clk 0:01:35.1]} 32. Rxd4
{[%clk 0:00:54.5]} 32... Ne3 {[%clk 0:01:34.7]} 33. Rxf7+ {[%clk 0:00:53.5]}
33... Kxd8 {[%clk 0:01:34.5]} 34. Ne6+ {[%clk 0:00:49]} 1-0

[Event "Late-Titled-Tuesday-Blitz-May-14-2024"]
[Site "Chess.com"]
[Date "2024.05.14"]
[Round "4"]
[White "penguingm1"]
[Black "Polish_fighter3000"]
[Result "1/2-1/2"]
[WhiteElo "2857"]
[BlackElo "3102"]
[TimeControl "180+1"]
[EndTime "14:37:39 PDT"]
[Termination "Game drawn by repetition"]

1. d4 {[%clk 0:03:00.9]} 1... d5 {[%clk 0:02:59.7]} 2. Nf3 {[%clk 0:03:00]} 2...
Nf6 {[%clk 0:02:57.6]} 3. Bf4 {[%clk 0:03:00.3]} 3... c5 {[%clk 0:02:58.2]} 4.
e3 {[%clk 0:03:00.3]} 4... Nc6 {[%clk 0:02:58.9]} 5. Nbd2 {[%clk 0:03:00.8]}
5... Qb6 {[%clk 0:02:58.9]} 6. dxc5 {[%clk 0:03:00.7]} 6... Qxb2 {[%clk
0:02:58.9]} 7. Rb1 {[%clk 0:03:01.4]} 7... Qc3 {[%clk 0:02:59.3]} 8. Bb5 {[%clk
0:03:01.5]} 8... g6 {[%clk 0:02:59.4]} 9. e4 {[%clk 0:02:51]} 9... dxe4 {[%clk
0:02:57.3]} 10. Be5 {[%clk 0:02:50.2]} 10... Qa5 {[%clk 0:02:55.2]} 11. O-O
{[%clk 0:02:49.2]} 11... exf3 {[%clk 0:02:54.4]} 12. Qxf3 {[%clk 0:01:05.9]}
12... Qxb5 {[%clk 0:02:54.2]} 13. Bxf6 {[%clk 0:01:01]} 13... Qxf1+ {[%clk
0:02:51.6]} 14. Kxf1 {[%clk 0:00:57]} 14... exf6 {[%clk 0:02:52.5]} 15. Qxf6
{[%clk 0:00:56.9]} 15... Rg8 {[%clk 0:02:51.9]} 16. Ne4 {[%clk 0:00:30.2]} 16...
Be7 {[%clk 0:01:23.1]} 17. Nd6+ {[%clk 0:00:26.8]} 17... Bxd6 {[%clk 0:01:22.4]}
18. cxd6 {[%clk 0:00:27.7]} 18... Rb8 {[%clk 0:00:58.5]} 19. Re1+ {[%clk
0:00:27.3]} 19... Be6 {[%clk 0:00:57.4]} 20. Rxe6+ {[%clk 0:00:27.4]} 20... fxe6
{[%clk 0:00:58.3]} 21. Qxe6+ {[%clk 0:00:28.2]} 21... Kf8 {[%clk 0:00:59]} 22.
Qf6+ {[%clk 0:00:28.9]} 22... Ke8 {[%clk 0:00:59.7]} 23. Qe6+ {[%clk 0:00:29.7]}
23... Kf8 {[%clk 0:01:00.4]} 24. Qf6+ {[%clk 0:00:30.5]} 24... Ke8 {[%clk
0:01:01]} 25. Qe6+ {[%clk 0:00:31.2]} 1/2-1/2

[Event "Late-Titled-Tuesday-Blitz-May-14-2024"]
[Site "Chess.com"]
[Date "2024.05.14"]
[Round "4"]
[White "ccccvhhhj"]
[Black "VictorFcQNK"]
[Result "1-0"]
[WhiteElo "2465"]
[BlackElo "2127"]
[TimeControl "180+1"]
[EndTime "14:37:47 PDT"]
[Termination "ccccvhhhj won by resignation"]

1. e4 {[%clk 0:03:00.9]} 1... e6 {[%clk 0:02:58.4]} 2. Nf3 {[%clk 0:03:01.2]}
2... d5 {[%clk 0:02:58]} 3. e5 {[%clk 0:03:02.1]} 3... c5 {[%clk 0:02:57.6]} 4.
b4 {[%clk 0:03:02.5]} 4... cxb4 {[%clk 0:02:54.7]} 5. a3 {[%clk 0:03:02.8]} 5...
bxa3 {[%clk 0:02:54]} 6. Nxa3 {[%clk 0:03:03.7]} 6... Nc6 {[%clk 0:02:50.3]} 7.
c3 {[%clk 0:03:04.1]} 7... Nge7 {[%clk 0:02:39.8]} 8. d4 {[%clk 0:03:00.3]} 8...
Nf5 {[%clk 0:02:24.7]} 9. Bd3 {[%clk 0:02:59.9]} 9... Be7 {[%clk 0:02:15.1]} 10.
O-O {[%clk 0:03:00.1]} 10... O-O {[%clk 0:02:13.6]} 11. Nc2 {[%clk 0:03:01]}
11... a6 {[%clk 0:02:10.7]} 12. Ne3 {[%clk 0:03:01.1]} 12... g6 {[%clk
0:01:30.7]} 13. Nxf5 {[%clk 0:02:59.7]} 13... exf5 {[%clk 0:01:30.3]} 14. Bh6
{[%clk 0:03:00.6]} 14... Re8 {[%clk 0:01:29.7]} 15. Qd2 {[%clk 0:03:00.8]} 15...
Be6 {[%clk 0:01:24.1]} 16. Bg5 {[%clk 0:03:00]} 16... Bxg5 {[%clk 0:01:22.3]}
17. Nxg5 {[%clk 0:03:00.9]} 17... Rc8 {[%clk 0:01:20]} 18. f4 {[%clk 0:03:00.6]}
18... f6 {[%clk 0:01:13.8]} 19. Nf3 {[%clk 0:02:59.8]} 19... fxe5 {[%clk
0:01:10.7]} 20. fxe5 {[%clk 0:03:00.7]} 20... Qe7 {[%clk 0:01:07.6]} 21. Kh1
{[%clk 0:02:59.3]} 21... Na7 {[%clk 0:01:02.7]} 22. Rfb1 {[%clk 0:02:56.7]}
22... Rc7 {[%clk 0:00:58.1]} 23. Rb6 {[%clk 0:02:55.2]} 23... Rc6 {[%clk
0:00:53.9]} 24. Rab1 {[%clk 0:02:54.5]} 24... Bc8 {[%clk 0:00:48.1]} 25. h3
{[%clk 0:02:52.1]} 25... Qc7 {[%clk 0:00:45.6]} 26. R6b3 {[%clk 0:02:48.7]}
26... Nb5 {[%clk 0:00:44.1]} 27. Bxb5 {[%clk 0:02:46.8]} 27... axb5 {[%clk
0:00:43.9]} 28. Rxb5 {[%clk 0:02:45]} 28... Rxc3 {[%clk 0:00:42.9]} 29. Rxd5
{[%clk 0:02:43.2]} 29... Rc2 {[%clk 0:00:40.2]} 30. Qh6 {[%clk 0:02:42.9]} 30...
Bd7 {[%clk 0:00:23.7]} 31. Rd6 {[%clk 0:02:37.2]} 31... Bc6 {[%clk 0:00:20.4]}
32. d5 {[%clk 0:02:23.6]} 32... Bb5 {[%clk 0:00:18.1]} 33. Rxb5 {[%clk
0:02:18.4]} 33... Rc1+ {[%clk 0:00:16.8]} 34. Kh2 {[%clk 0:02:19.1]} 34... Rc2
{[%clk 0:00:13.2]} 35. Rbb6 {[%clk 0:01:57.7]} 35... Rxe5 {[%clk 0:00:09.4]} 36.
Rxg6+ {[%clk 0:01:55.9]} 36... hxg6 {[%clk 0:00:03]} 37. Rxg6+ {[%clk
0:01:56.8]} 37... Kf7 {[%clk 0:00:03.3]} 38. Rg7+ {[%clk 0:01:56.6]} 1-0

[Event "Late-Titled-Tuesday-Blitz-May-14-2024"]
[Site "Chess.com"]
[Date "2024.05.14"]
[Round "4"]
[White "BrandonJiang123456"]
[Black "Cherepov_Alexej"]
[Result "0-1"]
[WhiteElo "2193"]
[BlackElo "2402"]
[TimeControl "180+1"]
[EndTime "14:37:50 PDT"]
[Termination "Cherepov_Alexej won on time"]

1. c4 {[%clk 0:01:47.9]} 1... Nf6 {[%clk 0:02:26.1]} 2. Nf3 {[%clk 0:01:45.9]}
2... c5 {[%clk 0:02:25.8]} 3. d3 {[%clk 0:01:43.6]} 3... Nc6 {[%clk 0:02:24.7]}
4. Bg5 {[%clk 0:01:41.8]} 4... e6 {[%clk 0:02:18.5]} 5. Nc3 {[%clk 0:01:38.3]}
5... Be7 {[%clk 0:02:16.7]} 6. e4 {[%clk 0:01:37.5]} 6... h6 {[%clk 0:02:15.4]}
7. Bxf6 {[%clk 0:01:21.1]} 7... Bxf6 {[%clk 0:02:15.3]} 8. Qd2 {[%clk
0:01:10.2]} 8... a6 {[%clk 0:02:14.7]} 9. Be2 {[%clk 0:01:04.4]} 9... b5 {[%clk
0:02:13.8]} 10. O-O {[%clk 0:01:04.3]} 10... b4 {[%clk 0:02:12.4]} 11. Nd1
{[%clk 0:01:04]} 11... d5 {[%clk 0:02:09.2]} 12. exd5 {[%clk 0:01:03.4]} 12...
exd5 {[%clk 0:02:09.3]} 13. cxd5 {[%clk 0:01:01]} 13... Qxd5 {[%clk 0:02:07.2]}
14. Ne3 {[%clk 0:00:59.2]} 14... Qe6 {[%clk 0:01:59.3]} 15. d4 {[%clk
0:00:53.2]} 15... cxd4 {[%clk 0:01:49]} 16. h3 {[%clk 0:00:45.8]} 16... dxe3
{[%clk 0:01:46.2]} 17. fxe3 {[%clk 0:00:44.2]} 17... O-O {[%clk 0:01:44.9]} 18.
b3 {[%clk 0:00:39.3]} 18... Bb7 {[%clk 0:01:42]} 19. g3 {[%clk 0:00:35]} 19...
Qxh3 {[%clk 0:01:40.1]} 20. a3 {[%clk 0:00:17.5]} 20... Rad8 {[%clk 0:01:32.4]}
21. Bd3 {[%clk 0:00:11.5]} 21... Qxg3+ {[%clk 0:01:25.2]} 22. Kh1 {[%clk
0:00:09.4]} 22... Ne5 {[%clk 0:01:25.1]} 23. Rf2 {[%clk 0:00:01.4]} 23... Nxf3
{[%clk 0:01:22.2]} 0-1

[Event "Late-Titled-Tuesday-Blitz-May-14-2024"]
[Site "Chess.com"]
[Date "2024.05.14"]
[Round "4"]
[White "Kira170"]
[Black "VacheH009"]
[Result "1-0"]
[WhiteElo "2759"]
[BlackElo "2545"]
[TimeControl "180+1"]
[EndTime "14:37:55 PDT"]
[Termination "Kira170 won by resignation"]

1. d4 {[%clk 0:02:55.1]} 1... Nf6 {[%clk 0:02:57.7]} 2. Nf3 {[%clk 0:02:54]}
2... e6 {[%clk 0:02:57.6]} 3. Bg5 {[%clk 0:02:53.9]} 3... d5 {[%clk 0:02:56.4]}
4. Nbd2 {[%clk 0:02:53.9]} 4... Be7 {[%clk 0:02:55.7]} 5. e3 {[%clk 0:02:54.1]}
5... h6 {[%clk 0:02:54.3]} 6. Bh4 {[%clk 0:02:53.6]} 6... O-O {[%clk 0:02:53.5]}
7. Bd3 {[%clk 0:02:53.5]} 7... b6 {[%clk 0:02:52.1]} 8. Qe2 {[%clk 0:02:53.1]}
8... a5 {[%clk 0:02:50.3]} 9. Ne5 {[%clk 0:02:50.2]} 9... Ba6 {[%clk 0:02:48.9]}
10. f4 {[%clk 0:02:46]} 10... Bxd3 {[%clk 0:02:46.6]} 11. cxd3 {[%clk 0:02:45]}
11... Nfd7 {[%clk 0:02:35.2]} 12. Bxe7 {[%clk 0:02:40.7]} 12... Qxe7 {[%clk
0:02:36.1]} 13. h4 {[%clk 0:02:40.8]} 13... Nxe5 {[%clk 0:02:30.7]} 14. fxe5
{[%clk 0:02:39.1]} 14... f6 {[%clk 0:02:30.6]} 15. exf6 {[%clk 0:02:38.1]} 15...
Rxf6 {[%clk 0:02:27.4]} 16. g4 {[%clk 0:02:37]} 16... c5 {[%clk 0:02:22.9]} 17.
g5 {[%clk 0:02:37.1]} 17... Rf5 {[%clk 0:01:37.9]} 18. gxh6 {[%clk 0:02:27.7]}
18... cxd4 {[%clk 0:01:30.1]} 19. exd4 {[%clk 0:02:23.3]} 19... Nc6 {[%clk
0:01:21.7]} 20. O-O-O {[%clk 0:02:22.9]} 20... Nxd4 {[%clk 0:01:18.6]} 21. Qg2
{[%clk 0:02:22.7]} 21... Kh8 {[%clk 0:00:48.8]} 22. Kb1 {[%clk 0:02:19.3]} 22...
gxh6 {[%clk 0:00:45.3]} 23. Rc1 {[%clk 0:02:04.9]} 23... Rg8 {[%clk 0:00:44.2]}
24. Qh3 {[%clk 0:01:58.3]} 24... Qf6 {[%clk 0:00:43]} 25. Qe3 {[%clk 0:01:52.2]}
25... Rf2 {[%clk 0:00:35.6]} 26. Rhf1 {[%clk 0:01:42.8]} 26... Rgg2 {[%clk
0:00:29.2]} 27. Rxf2 {[%clk 0:01:18.2]} 27... Qxf2 {[%clk 0:00:25.3]} 28. Qxh6+
{[%clk 0:01:17.2]} 28... Kg8 {[%clk 0:00:24.1]} 29. Rc8+ {[%clk 0:01:17]} 29...
Kf7 {[%clk 0:00:24.4]} 30. Rf8+ {[%clk 0:01:14.6]} 30... Ke7 {[%clk 0:00:24.8]}
31. Rxf2 {[%clk 0:01:14.3]} 31... Rxf2 {[%clk 0:00:24.3]} 32. Qg7+ {[%clk
0:01:13.1]} 1-0

[Event "Late-Titled-Tuesday-Blitz-May-14-2024"]
[Site "Chess.com"]
[Date "2024.05.14"]
[Round "4"]
[White "yaguigor"]
[Black "SchmakAttack"]
[Result "1/2-1/2"]
[WhiteElo "2562"]
[BlackElo "2776"]
[TimeControl "180+1"]
[EndTime "14:37:58 PDT"]
[Termination "Game drawn by repetition"]

1. e4 {[%clk 0:03:00.9]} 1... e6 {[%clk 0:03:00.2]} 2. d4 {[%clk 0:02:57.2]}
2... d5 {[%clk 0:03:00.7]} 3. Nc3 {[%clk 0:02:57.5]} 3... Nf6 {[%clk 0:03:01]}
4. e5 {[%clk 0:02:57.2]} 4... Nfd7 {[%clk 0:03:00.4]} 5. f4 {[%clk 0:02:57.9]}
5... c5 {[%clk 0:03:00.9]} 6. Nf3 {[%clk 0:02:57.2]} 6... Nc6 {[%clk 0:03:01.5]}
7. Be3 {[%clk 0:02:55.7]} 7... cxd4 {[%clk 0:03:01.4]} 8. Nxd4 {[%clk 0:02:55]}
8... Qb6 {[%clk 0:03:02]} 9. Qd2 {[%clk 0:02:54.6]} 9... Qxb2 {[%clk 0:03:01.7]}
10. Rb1 {[%clk 0:02:54.9]} 10... Qa3 {[%clk 0:03:02.4]} 11. Bb5 {[%clk
0:02:53.8]} 11... Nxd4 {[%clk 0:03:02]} 12. Bxd4 {[%clk 0:02:53.1]} 12... a6
{[%clk 0:03:02.7]} 13. Bxd7+ {[%clk 0:02:49.8]} 13... Bxd7 {[%clk 0:03:03.6]}
14. Rb3 {[%clk 0:02:49.3]} 14... Qe7 {[%clk 0:03:04.3]} 15. Rxb7 {[%clk
0:02:48.6]} 15... Rc8 {[%clk 0:03:05]} 16. O-O {[%clk 0:02:44.8]} 16... Qd8
{[%clk 0:03:05.3]} 17. Qe3 {[%clk 0:02:38.9]} 17... Rc4 {[%clk 0:03:04.1]} 18.
Rfb1 {[%clk 0:02:27.7]} 18... Be7 {[%clk 0:03:00.9]} 19. R1b2 {[%clk 0:01:51.3]}
19... O-O {[%clk 0:02:52.6]} 20. Ne2 {[%clk 0:01:47.6]} 20... Qc8 {[%clk
0:01:58.2]} 21. c3 {[%clk 0:01:44.8]} 21... Re8 {[%clk 0:01:48.9]} 22. h3 {[%clk
0:01:41.2]} 22... Bb5 {[%clk 0:01:43.1]} 23. Ra7 {[%clk 0:01:36.9]} 23... Bc5
{[%clk 0:01:27]} 24. Bxc5 {[%clk 0:01:31.3]} 24... Qxc5 {[%clk 0:01:27.9]} 25.
Qxc5 {[%clk 0:01:28.6]} 25... Rxc5 {[%clk 0:01:28.8]} 26. Nd4 {[%clk 0:01:28.6]}
26... Rxc3 {[%clk 0:01:25.9]} 27. Nxb5 {[%clk 0:01:28.4]} 27... axb5 {[%clk
0:01:26.8]} 28. Rxb5 {[%clk 0:01:28.4]} 28... g6 {[%clk 0:01:01.1]} 29. Rbb7
{[%clk 0:01:27.1]} 29... Rf8 {[%clk 0:01:01.5]} 30. Kf2 {[%clk 0:01:24.5]} 30...
h5 {[%clk 0:01:00.4]} 31. h4 {[%clk 0:01:20.1]} 31... Kg7 {[%clk 0:00:50.7]} 32.
Re7 {[%clk 0:01:16.1]} 32... Rc4 {[%clk 0:00:45.7]} 33. Kg3 {[%clk 0:01:12.9]}
33... Rc3+ {[%clk 0:00:45.2]} 34. Kh2 {[%clk 0:01:10.4]} 34... Rc4 {[%clk
0:00:45.4]} 35. Kg3 {[%clk 0:01:08.4]} 35... Rc3+ {[%clk 0:00:45.3]} 36. Kh2
{[%clk 0:01:08.3]} 36... Rc4 {[%clk 0:00:37.3]} 37. Kg3 {[%clk 0:01:06.3]}
1/2-1/2

[Event "Late-Titled-Tuesday-Blitz-May-14-2024"]
[Site "Chess.com"]
[Date "2024.05.14"]
[Round "4"]
[White "KamilGrycel"]
[Black "grzechu96"]
[Result "0-1"]
[WhiteElo "2566"]
[BlackElo "2807"]
[TimeControl "180+1"]
[EndTime "14:38:07 PDT"]
[Termination "grzechu96 won by resignation"]

1. d4 {[%clk 0:03:00.9]} 1... d5 {[%clk 0:02:59.8]} 2. Bf4 {[%clk 0:02:59.7]}
2... c5 {[%clk 0:02:59.9]} 3. c3 {[%clk 0:02:59.7]} 3... Nc6 {[%clk 0:03:00.2]}
4. e3 {[%clk 0:02:59.9]} 4... Bf5 {[%clk 0:02:59.4]} 5. Qb3 {[%clk 0:02:53.8]}
5... Qd7 {[%clk 0:02:58.4]} 6. Nd2 {[%clk 0:02:49.1]} 6... e6 {[%clk 0:02:54.6]}
7. Ngf3 {[%clk 0:02:48.6]} 7... c4 {[%clk 0:02:50.2]} 8. Qd1 {[%clk 0:02:47.3]}
8... Nf6 {[%clk 0:02:50.2]} 9. Nh4 {[%clk 0:02:40.2]} 9... Be7 {[%clk 0:02:49]}
10. Nxf5 {[%clk 0:02:35.5]} 10... exf5 {[%clk 0:02:49.9]} 11. Be2 {[%clk
0:02:35.4]} 11... O-O {[%clk 0:02:47.1]} 12. O-O {[%clk 0:02:34.9]} 12... b5
{[%clk 0:02:47.4]} 13. b3 {[%clk 0:02:33.9]} 13... Rfc8 {[%clk 0:02:40.9]} 14.
a4 {[%clk 0:02:24.2]} 14... b4 {[%clk 0:02:29.1]} 15. bxc4 {[%clk 0:02:11.2]}
15... bxc3 {[%clk 0:02:29]} 16. cxd5 {[%clk 0:01:45.8]} 16... Nxd5 {[%clk
0:02:23.4]} 17. Nc4 {[%clk 0:01:27.8]} 17... Nxf4 {[%clk 0:02:22.3]} 18. exf4
{[%clk 0:01:27.9]} 18... Nxd4 {[%clk 0:01:54.4]} 19. Ne5 {[%clk 0:01:25.7]}
19... Nxe2+ {[%clk 0:01:54]} 20. Qxe2 {[%clk 0:01:25.2]} 20... Qd4 {[%clk
0:01:54.2]} 21. Rfe1 {[%clk 0:01:19.6]} 21... Bf8 {[%clk 0:01:37.5]} 22. Nxf7
{[%clk 0:01:15.6]} 22... Qc4 {[%clk 0:01:25.1]} 23. Ne5 {[%clk 0:00:46.7]} 23...
Qxe2 {[%clk 0:01:24.6]} 24. Rxe2 {[%clk 0:00:47.6]} 24... c2 {[%clk 0:01:03.9]}
25. Rc1 {[%clk 0:00:47.2]} 25... Rab8 {[%clk 0:01:03.9]} 26. g3 {[%clk
0:00:46.2]} 26... Rb1 {[%clk 0:01:03.6]} 27. Nd3 {[%clk 0:00:44.2]} 27... Ba3
{[%clk 0:01:02.4]} 28. Ree1 {[%clk 0:00:25.3]} 28... Bxc1 {[%clk 0:00:57]} 29.
Rxc1 {[%clk 0:00:24.8]} 29... Rxc1+ {[%clk 0:00:56.6]} 30. Nxc1 {[%clk
0:00:25.7]} 30... Rd8 {[%clk 0:00:57.1]} 0-1